[Event "Late-Titled-Tuesday-Blitz-October-03-2023"]
[Site "Chess.com"]
[Date "2023.10.03"]
[Round "4"]
[White "Cambek64"]
[Black "lluiss"]
[Result "1-0"]
[WhiteElo "2446"]
[BlackElo "2164"]
[TimeControl "180+1"]
[EndTime "14:37:32 PDT"]
[Termination "Cambek64 won by resignation"]

1. e4 {[%clk 0:02:56.2]} 1... e6 {[%clk 0:02:58.2]} 2. d3 {[%clk 0:02:55]} 2...
d5 {[%clk 0:02:50.6]} 3. Qe2 {[%clk 0:02:55.2]} 3... Nf6 {[%clk 0:02:48.2]} 4.
e5 {[%clk 0:02:53.5]} 4... Nfd7 {[%clk 0:02:47.3]} 5. f4 {[%clk 0:02:54.1]} 5...
g6 {[%clk 0:02:38.7]} 6. Nf3 {[%clk 0:02:54.4]} 6... h5 {[%clk 0:02:38.3]} 7. g3
{[%clk 0:02:54.4]} 7... c5 {[%clk 0:02:35.2]} 8. Bg2 {[%clk 0:02:54.2]} 8... Nc6
{[%clk 0:02:35.3]} 9. O-O {[%clk 0:02:52.9]} 9... Be7 {[%clk 0:02:35.6]} 10. c4
{[%clk 0:02:52.3]} 10... Nb6 {[%clk 0:02:09.7]} 11. Be3 {[%clk 0:02:49.2]} 11...
h4 {[%clk 0:01:50.9]} 12. Nbd2 {[%clk 0:02:46.9]} 12... hxg3 {[%clk 0:01:49.4]}
13. hxg3 {[%clk 0:02:46.4]} 13... dxc4 {[%clk 0:01:38.4]} 14. dxc4 {[%clk
0:02:44.6]} 14... Nd4 {[%clk 0:01:38.5]} 15. Bxd4 {[%clk 0:02:44]} 15... cxd4
{[%clk 0:01:38.5]} 16. Qd3 {[%clk 0:02:44.2]} 16... O-O {[%clk 0:01:30.2]} 17.
Ne4 {[%clk 0:02:40.7]} 17... Nd7 {[%clk 0:01:26.1]} 18. Qxd4 {[%clk 0:02:35.9]}
18... Nc5 {[%clk 0:01:26.2]} 19. Qxd8 {[%clk 0:02:33.3]} 19... Rxd8 {[%clk
0:01:27.1]} 20. Nfg5 {[%clk 0:02:26.4]} 20... Bd7 {[%clk 0:01:22.4]} 21. Rfd1
{[%clk 0:02:21.9]} 21... Bc6 {[%clk 0:01:22.4]} 22. b3 {[%clk 0:02:13.4]} 22...
a5 {[%clk 0:01:13.2]} 23. Nxc5 {[%clk 0:02:02.4]} 23... Bxc5+ {[%clk 0:01:12.1]}
24. Kf1 {[%clk 0:02:00.6]} 24... Bxg2+ {[%clk 0:01:09.5]} 25. Kxg2 {[%clk
0:02:00]} 25... Kg7 {[%clk 0:01:10]} 26. Ne4 {[%clk 0:01:58.1]} 26... Bd4 {[%clk
0:01:07.1]} 27. Rac1 {[%clk 0:01:55.6]} 27... f6 {[%clk 0:01:05.1]} 28. exf6+
{[%clk 0:01:50.4]} 28... Bxf6 {[%clk 0:01:04.5]} 29. Nc5 {[%clk 0:01:46.2]}
29... Kf7 {[%clk 0:00:28.5]} 30. Nxb7 {[%clk 0:01:44.6]} 30... Rxd1 {[%clk
0:00:28]} 31. Rxd1 {[%clk 0:01:45.3]} 31... a4 {[%clk 0:00:28.2]} 32. Nd6+
{[%clk 0:01:37.4]} 32... Ke7 {[%clk 0:00:26.2]} 33. Ne4 {[%clk 0:01:37.4]} 33...
axb3 {[%clk 0:00:25.3]} 34. axb3 {[%clk 0:01:35.7]} 34... Ra2+ {[%clk
0:00:24.6]} 35. Kf3 {[%clk 0:01:35.4]} 35... Rb2 {[%clk 0:00:21.8]} 36. Rd3
{[%clk 0:01:34.2]} 36... Bg7 {[%clk 0:00:21.9]} 37. Kg4 {[%clk 0:01:27.1]} 37...
Rb1 {[%clk 0:00:21]} 38. Kg5 {[%clk 0:01:26.1]} 38... Re1 {[%clk 0:00:21.1]} 39.
Nc5 {[%clk 0:01:21.2]} 1-0

[Event "Late-Titled-Tuesday-Blitz-October-03-2023"]
[Site "Chess.com"]
[Date "2023.10.03"]
[Round "4"]
[White "Gogolev_Artemy"]
[Black "jerry_77"]
[Result "0-1"]
[WhiteElo "2404"]
[BlackElo "2613"]
[TimeControl "180+1"]
[EndTime "14:37:42 PDT"]
[Termination "jerry_77 won by checkmate"]

1. d4 {[%clk 0:03:00.9]} 1... d5 {[%clk 0:02:58.7]} 2. Bf4 {[%clk 0:03:01.3]}
2... e6 {[%clk 0:02:57.6]} 3. e3 {[%clk 0:03:01.7]} 3... Bd6 {[%clk 0:02:48.6]}
4. Nf3 {[%clk 0:02:59.4]} 4... Nf6 {[%clk 0:02:48.9]} 5. Ne5 {[%clk 0:02:56.8]}
5... O-O {[%clk 0:02:48.2]} 6. Nd2 {[%clk 0:02:56.9]} 6... c5 {[%clk 0:02:48.2]}
7. c3 {[%clk 0:02:57.5]} 7... Qc7 {[%clk 0:02:48]} 8. Bd3 {[%clk 0:02:43.2]}
8... Nbd7 {[%clk 0:02:47.1]} 9. Ndf3 {[%clk 0:02:36.9]} 9... Ne4 {[%clk
0:02:44.7]} 10. O-O {[%clk 0:02:20.1]} 10... f6 {[%clk 0:02:41]} 11. Nxd7 {[%clk
0:02:19.9]} 11... Bxd7 {[%clk 0:02:41.4]} 12. Bxe4 {[%clk 0:01:40.7]} 12... dxe4
{[%clk 0:02:33.8]} 13. Bxd6 {[%clk 0:01:39.7]} 13... Qxd6 {[%clk 0:02:33.5]} 14.
Nd2 {[%clk 0:01:40.3]} 14... Bc6 {[%clk 0:02:33.2]} 15. Qb3 {[%clk 0:01:26]}
15... Kh8 {[%clk 0:02:27.6]} 16. Rad1 {[%clk 0:01:21.8]} 16... Qe7 {[%clk
0:02:24.7]} 17. Qa3 {[%clk 0:01:19.7]} 17... f5 {[%clk 0:02:11.9]} 18. Qxc5
{[%clk 0:01:18.6]} 18... Qg5 {[%clk 0:02:12]} 19. Qe5 {[%clk 0:01:13.1]} 19...
Qg6 {[%clk 0:02:06.5]} 20. c4 {[%clk 0:00:53.9]} 20... h6 {[%clk 0:02:04.6]} 21.
f3 {[%clk 0:00:50]} 21... exf3 {[%clk 0:02:01.6]} 22. Nxf3 {[%clk 0:00:50.9]}
22... Be4 {[%clk 0:02:00.6]} 23. Rd2 {[%clk 0:00:43.7]} 23... Rac8 {[%clk
0:02:00.1]} 24. b3 {[%clk 0:00:43.2]} 24... a6 {[%clk 0:01:56.5]} 25. Qf4 {[%clk
0:00:40.8]} 25... b5 {[%clk 0:01:49.1]} 26. Ne5 {[%clk 0:00:39.6]} 26... Qe8
{[%clk 0:01:49]} 27. d5 {[%clk 0:00:34.1]} 27... bxc4 {[%clk 0:01:45.6]} 28.
bxc4 {[%clk 0:00:35]} 28... exd5 {[%clk 0:01:43.8]} 29. cxd5 {[%clk 0:00:35.9]}
29... Rf6 {[%clk 0:01:44.3]} 30. Rfd1 {[%clk 0:00:32.9]} 30... g5 {[%clk
0:01:34.6]} 31. Qg3 {[%clk 0:00:29.9]} 31... f4 {[%clk 0:01:34.5]} 32. exf4
{[%clk 0:00:20.5]} 32... gxf4 {[%clk 0:01:34.2]} 33. Qh4 {[%clk 0:00:16.2]}
33... Qxe5 {[%clk 0:01:33.8]} 34. d6 {[%clk 0:00:16.2]} 34... Rd8 {[%clk
0:01:30.9]} 35. d7 {[%clk 0:00:13.3]} 35... Qg5 {[%clk 0:01:30.8]} 36. Qe1
{[%clk 0:00:11.7]} 36... Bg6 {[%clk 0:01:25.6]} 37. Qe7 {[%clk 0:00:10.9]} 37...
Rff8 {[%clk 0:01:25.3]} 38. Qe6 {[%clk 0:00:07.7]} 38... f3 {[%clk 0:01:21.8]}
39. g3 {[%clk 0:00:03.6]} 39... Kg7 {[%clk 0:01:17.7]} 40. Rd5 {[%clk
0:00:02.7]} 40... Qf6 {[%clk 0:01:15.8]} 41. Qe3 {[%clk 0:00:01.4]} 41... f2+
{[%clk 0:01:15.5]} 42. Kg2 {[%clk 0:00:02.3]} 42... f1=Q+ {[%clk 0:01:12.8]} 43.
Rxf1 {[%clk 0:00:02]} 43... Qxf1# {[%clk 0:01:13.7]} 0-1

[Event "Late-Titled-Tuesday-Blitz-October-03-2023"]
[Site "Chess.com"]
[Date "2023.10.03"]
[Round "4"]
[White "campochess"]
[Black "Eloist"]
[Result "0-1"]
[WhiteElo "2134"]
[BlackElo "2435"]
[TimeControl "180+1"]
[EndTime "14:37:42 PDT"]
[Termination "Eloist won by resignation"]

1. d4 {[%clk 0:02:59.8]} 1... e6 {[%clk 0:02:58.5]} 2. Nf3 {[%clk 0:02:56.5]}
2... Nf6 {[%clk 0:02:58.5]} 3. c4 {[%clk 0:02:56.3]} 3... b6 {[%clk 0:02:58.6]}
4. g3 {[%clk 0:02:54.9]} 4... Bb7 {[%clk 0:02:58.5]} 5. Bg2 {[%clk 0:02:55]}
5... Be7 {[%clk 0:02:58.7]} 6. Nc3 {[%clk 0:02:54.8]} 6... O-O {[%clk
0:02:58.1]} 7. O-O {[%clk 0:02:54.7]} 7... Ne4 {[%clk 0:02:57.4]} 8. Qc2 {[%clk
0:02:53.1]} 8... Nxc3 {[%clk 0:02:51.5]} 9. bxc3 {[%clk 0:02:51.2]} 9... Nc6
{[%clk 0:02:50.8]} 10. e4 {[%clk 0:02:50.4]} 10... Na5 {[%clk 0:02:47.8]} 11.
Nd2 {[%clk 0:02:48.5]} 11... d6 {[%clk 0:02:46.4]} 12. f4 {[%clk 0:02:44.6]}
12... e5 {[%clk 0:02:46]} 13. d5 {[%clk 0:02:41.1]} 13... Ba6 {[%clk 0:02:35.8]}
14. Qd3 {[%clk 0:02:26.4]} 14... c6 {[%clk 0:02:34.5]} 15. dxc6 {[%clk
0:02:22.6]} 15... Qc7 {[%clk 0:02:29.8]} 16. Rd1 {[%clk 0:02:10.2]} 16... Qxc6
{[%clk 0:02:26.3]} 17. Qd5 {[%clk 0:01:57.9]} 17... Rac8 {[%clk 0:02:13.9]} 18.
Bf1 {[%clk 0:01:56.6]} 18... Qa4 {[%clk 0:01:56.8]} 19. Nb3 {[%clk 0:01:45.9]}
19... Bxc4 {[%clk 0:01:43.5]} 20. Bxc4 {[%clk 0:01:41.5]} 20... Nxc4 {[%clk
0:01:39.8]} 21. f5 {[%clk 0:01:31.3]} 21... Qc6 {[%clk 0:01:33.7]} 22. Qd3
{[%clk 0:01:16]} 22... Rfd8 {[%clk 0:01:21.5]} 23. h4 {[%clk 0:00:58.4]} 23...
h6 {[%clk 0:01:14.2]} 24. Qf3 {[%clk 0:00:52.6]} 24... a5 {[%clk 0:01:07.5]} 25.
f6 {[%clk 0:00:50]} 25... Bxf6 {[%clk 0:01:06.8]} 26. Bxh6 {[%clk 0:00:49.5]}
26... a4 {[%clk 0:01:02.3]} 27. Nd2 {[%clk 0:00:47.8]} 27... d5 {[%clk
0:00:52.1]} 28. Bg5 {[%clk 0:00:42.1]} 28... Bxg5 {[%clk 0:00:49.3]} 29. hxg5
{[%clk 0:00:41.1]} 29... Nxd2 {[%clk 0:00:48.7]} 30. Rxd2 {[%clk 0:00:39.3]}
30... dxe4 {[%clk 0:00:48.7]} 31. Qe3 {[%clk 0:00:32.3]} 31... Rxd2 {[%clk
0:00:46.7]} 32. Qxd2 {[%clk 0:00:31.1]} 32... Qxc3 {[%clk 0:00:46.3]} 33. Rd1
{[%clk 0:00:20.9]} 33... Qxg3+ {[%clk 0:00:44.3]} 34. Qg2 {[%clk 0:00:19.8]}
34... Qxg2+ {[%clk 0:00:36.9]} 0-1

[Event "Late-Titled-Tuesday-Blitz-October-03-2023"]
[Site "Chess.com"]
[Date "2023.10.03"]
[Round "4"]
[White "Iball95"]
[Black "canary2016"]
[Result "1-0"]
[WhiteElo "2772"]
[BlackElo "2158"]
[TimeControl "180+1"]
[EndTime "14:37:44 PDT"]
[Termination "Iball95 won on time"]

1. e4 {[%clk 0:02:59.1]} 1... c5 {[%clk 0:02:59.7]} 2. Nf3 {[%clk 0:02:54.9]}
2... d6 {[%clk 0:02:59.6]} 3. Nc3 {[%clk 0:02:55.7]} 3... Nc6 {[%clk 0:02:56.1]}
4. Bb5 {[%clk 0:02:55.6]} 4... Bd7 {[%clk 0:02:52.6]} 5. Bxc6 {[%clk 0:02:55.9]}
5... Bxc6 {[%clk 0:02:52.7]} 6. d4 {[%clk 0:02:56.3]} 6... cxd4 {[%clk
0:02:47.8]} 7. Qxd4 {[%clk 0:02:57.2]} 7... e6 {[%clk 0:02:40.8]} 8. Bg5 {[%clk
0:02:57.5]} 8... Qc7 {[%clk 0:02:31.7]} 9. O-O-O {[%clk 0:02:56.9]} 9... Rc8
{[%clk 0:02:17.5]} 10. Rhe1 {[%clk 0:02:50]} 10... h6 {[%clk 0:02:15.1]} 11. Bh4
{[%clk 0:02:49.8]} 11... Ne7 {[%clk 0:02:11.8]} 12. Qxd6 {[%clk 0:02:13.1]}
12... Qxd6 {[%clk 0:02:00.6]} 13. Rxd6 {[%clk 0:02:14]} 13... Ng6 {[%clk
0:02:01.1]} 14. Rd3 {[%clk 0:02:12.2]} 14... Nxh4 {[%clk 0:01:54.8]} 15. Nxh4
{[%clk 0:02:13.1]} 15... Be7 {[%clk 0:01:52.9]} 16. Nf3 {[%clk 0:02:13.1]} 16...
O-O {[%clk 0:01:51.3]} 17. Ne5 {[%clk 0:02:11.9]} 17... Bg5+ {[%clk 0:01:31.6]}
18. Kb1 {[%clk 0:02:12.3]} 18... Rfd8 {[%clk 0:01:09.1]} 19. Nxc6 {[%clk
0:02:07.8]} 19... Rxc6 {[%clk 0:01:08.5]} 20. Rxd8+ {[%clk 0:02:05]} 20... Bxd8
{[%clk 0:01:09.3]} 21. Rd1 {[%clk 0:02:04.3]} 21... Ba5 {[%clk 0:01:05.5]} 22.
Ne2 {[%clk 0:02:04.5]} 22... Rc7 {[%clk 0:01:00.2]} 23. c3 {[%clk 0:02:03.5]}
23... Kf8 {[%clk 0:00:58.5]} 24. Kc2 {[%clk 0:02:03.3]} 24... Ke7 {[%clk
0:00:58.4]} 25. g3 {[%clk 0:02:00.6]} 25... b5 {[%clk 0:00:51.5]} 26. Kb3 {[%clk
0:01:52.2]} 26... Bb6 {[%clk 0:00:42.8]} 27. f3 {[%clk 0:01:52.6]} 27... a5
{[%clk 0:00:42.6]} 28. a4 {[%clk 0:01:53]} 28... bxa4+ {[%clk 0:00:28.5]} 29.
Kxa4 {[%clk 0:01:53.9]} 29... Rc5 {[%clk 0:00:25.4]} 30. Nf4 {[%clk 0:01:36.6]}
30... g5 {[%clk 0:00:14.5]} 31. Nd3 {[%clk 0:01:35.8]} 31... Rc8 {[%clk
0:00:13.5]} 32. Ne5 {[%clk 0:01:34.9]} 32... f6 {[%clk 0:00:06.1]} 33. Rd7+
{[%clk 0:01:16.5]} 33... Ke8 {[%clk 0:00:04.9]} 34. Rd6 {[%clk 0:01:17.3]} 34...
Bc7 {[%clk 0:00:02.6]} 35. Rxe6+ {[%clk 0:01:17.1]} 35... Kf8 {[%clk 0:00:02.4]}
36. Rxf6+ {[%clk 0:01:17.2]} 36... Kg7 {[%clk 0:00:02.8]} 37. Rg6+ {[%clk
0:01:14.3]} 37... Kh7 {[%clk 0:00:02.8]} 38. Re6 {[%clk 0:01:15.2]} 38... Bb8
{[%clk 0:00:01.7]} 39. Nd7 {[%clk 0:01:14.5]} 1-0

[Event "Late-Titled-Tuesday-Blitz-October-03-2023"]
[Site "Chess.com"]
[Date "2023.10.03"]
[Round "4"]
[White "NMJeevanK"]
[Black "Nor1lsk"]
[Result "1-0"]
[WhiteElo "2550"]
[BlackElo "2713"]
[TimeControl "180+1"]
[EndTime "14:37:44 PDT"]
[Termination "NMJeevanK won by checkmate"]

1. e4 {[%clk 0:03:00.9]} 1... c5 {[%clk 0:02:59.9]} 2. Nc3 {[%clk 0:03:01]} 2...
a6 {[%clk 0:02:59.4]} 3. f4 {[%clk 0:02:58.1]} 3... b5 {[%clk 0:02:59.3]} 4. Nf3
{[%clk 0:02:57.5]} 4... Bb7 {[%clk 0:02:59.5]} 5. d3 {[%clk 0:02:57.9]} 5... g6
{[%clk 0:02:58.8]} 6. g4 {[%clk 0:02:56.5]} 6... Bg7 {[%clk 0:02:58.3]} 7. Bg2
{[%clk 0:02:55.8]} 7... d6 {[%clk 0:02:58.4]} 8. h4 {[%clk 0:02:54.6]} 8... h5
{[%clk 0:02:57.2]} 9. g5 {[%clk 0:02:52.9]} 9... e6 {[%clk 0:02:57.3]} 10. f5
{[%clk 0:02:47.7]} 10... exf5 {[%clk 0:02:47.3]} 11. exf5 {[%clk 0:02:48]} 11...
Bxc3+ {[%clk 0:02:47.2]} 12. bxc3 {[%clk 0:02:47.6]} 12... Ne7 {[%clk
0:02:47.7]} 13. f6 {[%clk 0:02:42.5]} 13... Nf5 {[%clk 0:02:47.7]} 14. Qe2+
{[%clk 0:02:40.2]} 14... Kd7 {[%clk 0:02:47.3]} 15. Ne5+ {[%clk 0:02:21.9]}
15... dxe5 {[%clk 0:02:37.5]} 16. Bxb7 {[%clk 0:02:21.6]} 16... Ra7 {[%clk
0:02:37.4]} 17. Qg2 {[%clk 0:02:04.1]} 17... Kc7 {[%clk 0:02:32.9]} 18. Be4
{[%clk 0:02:01.3]} 18... Nd6 {[%clk 0:02:32.9]} 19. Be3 {[%clk 0:01:56]} 19...
Nxe4 {[%clk 0:02:31.3]} 20. Qxe4 {[%clk 0:01:56.9]} 20... Qd6 {[%clk 0:02:27.6]}
21. a4 {[%clk 0:01:54]} 21... Rb7 {[%clk 0:02:20.5]} 22. O-O {[%clk 0:01:46.4]}
22... Nd7 {[%clk 0:02:20.2]} 23. Rfb1 {[%clk 0:01:41.3]} 23... Qe6 {[%clk
0:02:17.2]} 24. axb5 {[%clk 0:01:36.8]} 24... axb5 {[%clk 0:02:17]} 25. Ra5
{[%clk 0:01:30.1]} 25... Rhb8 {[%clk 0:02:16.3]} 26. Rba1 {[%clk 0:01:14.9]}
26... Qc6 {[%clk 0:02:14.1]} 27. Qg2 {[%clk 0:00:52.6]} 27... Qxg2+ {[%clk
0:02:12.3]} 28. Kxg2 {[%clk 0:00:53.5]} 28... Kc6 {[%clk 0:02:11.7]} 29. Kf3
{[%clk 0:00:52.4]} 29... Kd5 {[%clk 0:01:57.5]} 30. Rxb5 {[%clk 0:00:42.8]}
30... Rxb5 {[%clk 0:01:56]} 31. c4+ {[%clk 0:00:43.3]} 31... Kc6 {[%clk
0:01:46.5]} 32. cxb5+ {[%clk 0:00:43.6]} 32... Rxb5 {[%clk 0:01:46.7]} 33. Ra6+
{[%clk 0:00:37.7]} 33... Kb7 {[%clk 0:01:43.8]} 34. Rd6 {[%clk 0:00:31.9]} 34...
Kc7 {[%clk 0:01:42.3]} 35. Ra6 {[%clk 0:00:30.1]} 35... Rb2 {[%clk 0:01:39]} 36.
c4 {[%clk 0:00:21]} 36... Rh2 {[%clk 0:01:38.4]} 37. Ke4 {[%clk 0:00:18]} 37...
Rxh4+ {[%clk 0:01:33.1]} 38. Kd5 {[%clk 0:00:18.2]} 38... Rh3 {[%clk 0:01:32]}
39. Ra7+ {[%clk 0:00:12]} 39... Kd8 {[%clk 0:01:29]} 40. Kd6 {[%clk 0:00:12.2]}
40... Nb6 {[%clk 0:01:21.3]} 41. Rxf7 {[%clk 0:00:02]} 41... Nc8+ {[%clk
0:01:20.8]} 42. Ke6 {[%clk 0:00:01.8]} 42... Rxe3 {[%clk 0:01:20.4]} 43. Rd7+
{[%clk 0:00:02.2]} 43... Ke8 {[%clk 0:01:18]} 44. f7+ {[%clk 0:00:03.1]} 44...
Kf8 {[%clk 0:01:18.2]} 45. Rd8+ {[%clk 0:00:03.8]} 45... Kg7 {[%clk 0:01:17.8]}
46. f8=Q+ {[%clk 0:00:04.7]} 46... Kh7 {[%clk 0:01:18.2]} 47. Qh6# {[%clk
0:00:05]} 1-0

[Event "Late-Titled-Tuesday-Blitz-October-03-2023"]
[Site "Chess.com"]
[Date "2023.10.03"]
[Round "4"]
[White "Kosak12"]
[Black "pedromartinez91"]
[Result "1-0"]
[WhiteElo "2800"]
[BlackElo "2551"]
[TimeControl "180+1"]
[EndTime "14:37:46 PDT"]
[Termination "Kosak12 won on time"]

1. e4 {[%clk 0:02:54.1]} 1... d5 {[%clk 0:02:59.8]} 2. exd5 {[%clk 0:02:52.6]}
2... Qxd5 {[%clk 0:03:00.7]} 3. Nc3 {[%clk 0:02:49.9]} 3... Qd8 {[%clk
0:03:00.7]} 4. d4 {[%clk 0:02:49]} 4... Nf6 {[%clk 0:02:59]} 5. Bc4 {[%clk
0:02:49]} 5... g6 {[%clk 0:02:59.4]} 6. Nf3 {[%clk 0:02:47.9]} 6... Bg7 {[%clk
0:03:00]} 7. O-O {[%clk 0:02:47.3]} 7... O-O {[%clk 0:03:00.6]} 8. h3 {[%clk
0:02:47.7]} 8... Nc6 {[%clk 0:02:57.5]} 9. Re1 {[%clk 0:02:46.6]} 9... b6 {[%clk
0:02:56.9]} 10. Bg5 {[%clk 0:02:42.3]} 10... Bb7 {[%clk 0:02:55.3]} 11. a3
{[%clk 0:02:41.9]} 11... h6 {[%clk 0:02:48.6]} 12. Bh4 {[%clk 0:02:41.1]} 12...
e6 {[%clk 0:02:34.5]} 13. Qd3 {[%clk 0:02:20.1]} 13... Ne7 {[%clk 0:02:24.4]}
14. Bg3 {[%clk 0:02:06.1]} 14... Bxf3 {[%clk 0:02:20.6]} 15. Qxf3 {[%clk
0:02:02.4]} 15... Qxd4 {[%clk 0:02:20.3]} 16. Bb3 {[%clk 0:02:03.1]} 16... Nf5
{[%clk 0:01:58.5]} 17. Bxc7 {[%clk 0:02:01.8]} 17... Rac8 {[%clk 0:01:35.8]} 18.
Be5 {[%clk 0:02:00.7]} 18... Qc5 {[%clk 0:01:35.6]} 19. Rad1 {[%clk 0:01:55.4]}
19... Rfd8 {[%clk 0:01:28.4]} 20. Rxd8+ {[%clk 0:01:54.7]} 20... Rxd8 {[%clk
0:01:28.5]} 21. Qb7 {[%clk 0:01:55.2]} 21... Rd7 {[%clk 0:01:07.3]} 22. Qb8+
{[%clk 0:01:48.2]} 22... Qf8 {[%clk 0:01:05.8]} 23. Ba4 {[%clk 0:01:34.9]} 23...
Qxb8 {[%clk 0:01:02.1]} 24. Bxb8 {[%clk 0:01:35.8]} 24... Rb7 {[%clk 0:00:42.7]}
25. Be5 {[%clk 0:01:33.1]} 25... a6 {[%clk 0:00:15.2]} 26. Bc6 {[%clk
0:01:30.8]} 26... Ra7 {[%clk 0:00:14.6]} 27. Rd1 {[%clk 0:01:31.5]} 27... Ne7
{[%clk 0:00:09.2]} 28. Bf3 {[%clk 0:01:29.8]} 28... Nfd5 {[%clk 0:00:08.4]} 29.
Bxg7 {[%clk 0:01:28.6]} 29... Kxg7 {[%clk 0:00:09.3]} 30. Nxd5 {[%clk 0:01:29]}
30... exd5 {[%clk 0:00:08.1]} 31. Bxd5 {[%clk 0:01:29.4]} 31... Rc7 {[%clk
0:00:04.7]} 32. c3 {[%clk 0:01:29]} 32... Kf6 {[%clk 0:00:05.1]} 33. Bf3 {[%clk
0:01:29]} 33... Ke6 {[%clk 0:00:04.6]} 34. Kf1 {[%clk 0:01:27.9]} 34... h5
{[%clk 0:00:04.8]} 35. Be2 {[%clk 0:01:24.6]} 35... b5 {[%clk 0:00:03.8]} 36.
Re1 {[%clk 0:01:23.9]} 36... Kf6 {[%clk 0:00:04]} 37. Bf3 {[%clk 0:01:15.2]}
37... Nf5 {[%clk 0:00:04.3]} 38. Rd1 {[%clk 0:01:15]} 38... Ke7 {[%clk
0:00:04.5]} 39. Ke2 {[%clk 0:01:14.1]} 39... Nd6 {[%clk 0:00:04.9]} 40. Kd3
{[%clk 0:01:13.1]} 40... Nc4 {[%clk 0:00:05.2]} 41. Kc2 {[%clk 0:01:13.7]} 41...
Kf6 {[%clk 0:00:02.9]} 42. Be2 {[%clk 0:01:13.7]} 42... Ne5 {[%clk 0:00:02.9]}
43. f4 {[%clk 0:01:11.9]} 43... Nd7 {[%clk 0:00:02.8]} 44. Rd6+ {[%clk
0:01:12.1]} 44... Ke7 {[%clk 0:00:03.2]} 45. Rxa6 {[%clk 0:01:12.3]} 1-0

[Event "Late-Titled-Tuesday-Blitz-October-03-2023"]
[Site "Chess.com"]
[Date "2023.10.03"]
[Round "4"]
[White "Hilary46"]
[Black "WPWPWP-2015"]
[Result "1-0"]
[WhiteElo "2637"]
[BlackElo "2506"]
[TimeControl "180+1"]
[EndTime "14:37:47 PDT"]
[Termination "Hilary46 won by resignation"]

1. e4 {[%clk 0:03:00.9]} 1... e5 {[%clk 0:02:59.3]} 2. Nf3 {[%clk 0:03:01.4]}
2... Nf6 {[%clk 0:02:59.1]} 3. Nxe5 {[%clk 0:03:00.7]} 3... d6 {[%clk
0:02:59.3]} 4. Nf3 {[%clk 0:03:01.1]} 4... Nxe4 {[%clk 0:02:59.5]} 5. Nc3 {[%clk
0:03:01.6]} 5... Nxc3 {[%clk 0:02:59.4]} 6. dxc3 {[%clk 0:03:02.5]} 6... Be7
{[%clk 0:02:59.7]} 7. Be3 {[%clk 0:03:02.2]} 7... O-O {[%clk 0:02:59.8]} 8. Qd2
{[%clk 0:03:02.7]} 8... Nc6 {[%clk 0:02:59.7]} 9. O-O-O {[%clk 0:03:02.2]} 9...
Ne5 {[%clk 0:02:59.5]} 10. Nxe5 {[%clk 0:02:57.8]} 10... dxe5 {[%clk 0:02:58.7]}
11. Bd3 {[%clk 0:02:50.6]} 11... Be6 {[%clk 0:02:58]} 12. Kb1 {[%clk 0:02:49]}
12... c6 {[%clk 0:02:52.2]} 13. Qe2 {[%clk 0:02:45.6]} 13... Qa5 {[%clk
0:02:51.1]} 14. c4 {[%clk 0:02:37.9]} 14... f5 {[%clk 0:02:46]} 15. f3 {[%clk
0:02:33.4]} 15... Bf6 {[%clk 0:02:44.3]} 16. Bd2 {[%clk 0:02:21.3]} 16... Qb6
{[%clk 0:02:40.9]} 17. Bc3 {[%clk 0:02:19.1]} 17... a5 {[%clk 0:01:18.8]} 18.
Bxe5 {[%clk 0:02:17.2]} 18... Rae8 {[%clk 0:01:17.2]} 19. Bxf6 {[%clk 0:02:15]}
19... Rxf6 {[%clk 0:01:17]} 20. Rhe1 {[%clk 0:02:11.6]} 20... a4 {[%clk
0:01:11.9]} 21. a3 {[%clk 0:02:06.1]} 21... Bf7 {[%clk 0:01:09.4]} 22. Qd2
{[%clk 0:02:06]} 22... Rd8 {[%clk 0:01:04.6]} 23. Re5 {[%clk 0:01:55.4]} 23...
Qd4 {[%clk 0:00:54.2]} 24. Rde1 {[%clk 0:01:52.4]} 24... g6 {[%clk 0:00:48.5]}
25. Re7 {[%clk 0:01:23.2]} 25... b5 {[%clk 0:00:38.3]} 26. cxb5 {[%clk
0:01:00.7]} 26... Qd5 {[%clk 0:00:30]} 27. Rxf7 {[%clk 0:00:52]} 27... Rxf7
{[%clk 0:00:29.7]} 28. Qb4 {[%clk 0:00:49.6]} 28... cxb5 {[%clk 0:00:28.1]} 29.
Bxb5 {[%clk 0:00:42]} 29... Rc7 {[%clk 0:00:25]} 30. Bxa4 {[%clk 0:00:39.1]}
30... Qd4 {[%clk 0:00:22.2]} 31. Bb3+ {[%clk 0:00:36.4]} 31... Kh8 {[%clk
0:00:20.4]} 32. Re8+ {[%clk 0:00:33.3]} 1-0

[Event "Late-Titled-Tuesday-Blitz-October-03-2023"]
[Site "Chess.com"]
[Date "2023.10.03"]
[Round "4"]
[White "MalcolmPein"]
[Black "Gyulamiryan-koryun"]
[Result "1-0"]
[WhiteElo "2293"]
[BlackElo "1982"]
[TimeControl "180+1"]
[EndTime "14:37:52 PDT"]
[Termination "MalcolmPein won on time"]

1. b3 {[%clk 0:03:00.9]} 1... Nf6 {[%clk 0:02:58.6]} 2. Bb2 {[%clk 0:03:00.1]}
2... g6 {[%clk 0:02:58.8]} 3. Nf3 {[%clk 0:03:00.1]} 3... Bg7 {[%clk 0:02:58.8]}
4. g3 {[%clk 0:03:00.6]} 4... O-O {[%clk 0:02:58.8]} 5. Bg2 {[%clk 0:03:01.1]}
5... c6 {[%clk 0:02:59]} 6. O-O {[%clk 0:03:01]} 6... e6 {[%clk 0:02:58.5]} 7.
c4 {[%clk 0:02:52.2]} 7... d5 {[%clk 0:02:58.3]} 8. d3 {[%clk 0:02:49.9]} 8...
Re8 {[%clk 0:02:55]} 9. Nbd2 {[%clk 0:02:48.9]} 9... a5 {[%clk 0:02:45]} 10. Qc2
{[%clk 0:02:45]} 10... Na6 {[%clk 0:02:43]} 11. a3 {[%clk 0:02:44.4]} 11... b5
{[%clk 0:02:35.9]} 12. Ne5 {[%clk 0:02:40.4]} 12... Bb7 {[%clk 0:02:34.1]} 13.
Rac1 {[%clk 0:02:29.4]} 13... b4 {[%clk 0:02:31.7]} 14. a4 {[%clk 0:02:21.2]}
14... Nc5 {[%clk 0:02:31]} 15. cxd5 {[%clk 0:02:12.2]} 15... cxd5 {[%clk
0:01:53.7]} 16. Qxc5 {[%clk 0:02:09.9]} 16... Rc8 {[%clk 0:01:53.1]} 17. Qa7
{[%clk 0:02:07.1]} 17... Rxc1 {[%clk 0:01:45.1]} 18. Rxc1 {[%clk 0:02:02]} 18...
Re7 {[%clk 0:01:30.4]} 19. Bd4 {[%clk 0:01:42.9]} 19... Ne8 {[%clk 0:01:13.6]}
20. Ndf3 {[%clk 0:01:28.7]} 20... f6 {[%clk 0:00:56.5]} 21. Bb6 {[%clk
0:01:27.8]} 21... Qa8 {[%clk 0:00:36.7]} 22. Qxa8 {[%clk 0:01:25.6]} 22... Bxa8
{[%clk 0:00:36.8]} 23. Rc8 {[%clk 0:01:25.7]} 23... Bb7 {[%clk 0:00:33.4]} 24.
Nc6 {[%clk 0:01:18]} 24... Kf7 {[%clk 0:00:27.3]} 25. Nxe7 {[%clk 0:01:16.4]}
25... Kxe7 {[%clk 0:00:23.6]} 26. Rb8 {[%clk 0:01:13.6]} 26... Bc6 {[%clk
0:00:21.2]} 27. Bxa5 {[%clk 0:01:12.6]} 27... e5 {[%clk 0:00:20.1]} 28. Bxb4+
{[%clk 0:01:12.9]} 28... Kd7 {[%clk 0:00:18.9]} 29. a5 {[%clk 0:01:02.6]} 29...
Kc7 {[%clk 0:00:09.3]} 30. Rb6 {[%clk 0:00:58.5]} 30... Nd6 {[%clk 0:00:03.1]}
31. Bxd6+ {[%clk 0:00:57.4]} 31... Kxd6 {[%clk 0:00:02.8]} 32. b4 {[%clk
0:00:54.6]} 32... Kc7 {[%clk 0:00:02.7]} 33. b5 {[%clk 0:00:53.9]} 1-0